fUSD/lending_fUSD_20240615
["ID","MTS","AMOUNT","RATE_DAILY","PERIOD"]
[329563692,1718439049845,-500.0,0.00022191,3]
[329563693,1718439049869,-276.16941317,0.00022191,3]
[329563694,1718439049906,-500.0,0.00022191,3]
[329563695,1718439049948,-683.86,0.00022191,3]
[329563696,1718439049962,-500.0,0.00022191,3]
[329563697,1718439049972,-500.0,0.00022191,3]
[329563698,1718439049989,-500.0,0.00022191,3]
[329563699,1718439050003,-408.42082238,0.00022191,3]
[329563700,1718439050017,-500.0,0.00022191,3]
[329563701,1718439050080,-500.0,0.00022191,3]
[329563702,1718439050099,-500.0,0.00022191,3]
[329563703,1718439050167,-500.0,0.00022191,3]
[329563704,1718439050180,-500.0,0.00022191,3]
[329563705,1718439050193,-582.86,0.00022191,3]
[329563706,1718439050206,-500.0,0.00022191,3]
[329563707,1718439050263,-500.0,0.00022191,3]
[329563708,1718439050280,-500.0,0.00022191,3]
[329563709,1718439050296,-500.0,0.00022191,3]
[329563710,1718439050344,-813.63,0.00022191,3]
[329563711,1718439050563,-512.64558011,0.00022191,3]
[329563712,1718439050598,-500.0,0.00022191,3]
[329563713,1718439050610,-500.0,0.00022191,3]
[329563714,1718439050627,-500.0,0.00022191,3]
[329563715,1718439050663,-500.0,0.00022191,3]
[329563716,1718439050687,-353.61280795,0.00022191,3]
[329563717,1718439050727,-623.43,0.00022191,3]
[329563718,1718439050744,-500.0,0.00022191,3]
[329563719,1718439050755,-500.0,0.00022191,3]
[329563720,1718439050812,-500.0,0.00022191,3]
[329563721,1718439050824,-500.0,0.00022191,3]
[329563722,1718439050868,-500.0,0.00022191,3]
[329563723,1718439050936,-720.05,0.00022191,3]
[329563724,1718439050947,-621.24,0.00022191,3]
[329563725,1718439051000,-500.0,0.00022191,3]
[329563726,1718439051012,-500.0,0.00022191,3]
[329563727,1718439051068,-500.0,0.00022191,3]
[329563728,1718439051082,-377.62080552,0.00022191,3]
[329563729,1718439051164,-609.35,0.00022191,3]
[329563730,1718439051219,-500.0,0.00022191,3]
[329563731,1718439051233,-500.0,0.00022191,3]
[329563732,1718439051260,-500.0,0.00022191,3]
[329563733,1718439051275,-500.0,0.00022191,3]
[329563734,1718439051286,-500.0,0.00022191,3]
[329563735,1718439051316,-500.0,0.00022191,3]
[329563736,1718439051332,-500.0,0.00022191,3]
[329563737,1718439051396,-500.0,0.00022191,3]
[329563738,1718439051424,-500.0,0.00022191,3]
[329563739,1718439051436,-500.0,0.00022191,3]
[329563740,1718439051448,-500.0,0.00022191,3]
[329563741,1718439051464,-177.28747011,0.00022191,3]
[329563742,1718439051477,-500.0,0.00022191,3]
[329563743,1718439051497,-500.0,0.00022191,3]
[329563744,1718439051511,-500.0,0.00022191,3]
[329563745,1718439051521,-500.0,0.00022191,3]
[329563749,1718439051620,-550.15,0.00022191,3]
[329563752,1718439051674,-431.41705527,0.00022191,3]
[329563756,1718439051756,-500.0,0.00022191,3]
[329563758,1718439051781,-500.0,0.00022191,3]
[329563760,1718439051860,-500.0,0.00022191,3]
[329563762,1718439051887,-614.12,0.00022191,3]
[329563764,1718439051906,-500.0,0.00022191,3]
[329563765,1718439051931,-500.0,0.00022191,3]
[329563766,1718439051961,-500.0,0.00022191,3]
[329563767,1718439051977,-186.02512681,0.00022191,3]
[329563768,1718439052000,-500.0,0.00022191,3]
[329563769,1718439052024,-500.0,0.00022191,3]
[329563770,1718439052035,-564.38,0.00022191,3]
[329563771,1718439052049,-500.0,0.00022191,3]
[329563772,1718439052060,-611.53,0.00022191,3]
[329563773,1718439052125,-500.0,0.00022191,3]
[329563774,1718439052145,-500.0,0.00022191,3]
[329563775,1718439052168,-500.0,0.00022191,3]
[329563776,1718439052204,-500.0,0.00022191,3]
[329563777,1718439052233,-500.0,0.00022191,3]
[329563778,1718439052276,-284.60670002,0.00022191,3]
[329563779,1718439052289,-500.0,0.00022191,3]
[329563780,1718439052301,-500.0,0.00022191,3]
[329563781,1718439052314,-500.0,0.00022191,3]
[329563782,1718439052331,-500.0,0.00022191,3]
[329563783,1718439052353,-643.38,0.00022191,3]
[329563784,1718439052381,-500.0,0.00022191,3]
[329563785,1718439052424,-500.0,0.00022191,3]
[329563786,1718439052436,-500.0,0.00022191,3]
[329563787,1718439052459,-500.0,0.00022191,3]
[329563788,1718439052471,-500.0,0.00022191,3]
[329563789,1718439052482,-500.0,0.00022191,3]
[329563790,1718439052497,-500.0,0.00022191,3]
[329563791,1718439052508,-500.0,0.00022191,3]
[329563792,1718439052518,-589.65,0.00022191,3]
[329563793,1718439052556,-500.0,0.00022191,3]
[329563794,1718439052573,-500.0,0.00022191,3]
[329563795,1718439052597,-527.63032971,0.00022191,3]
[329563796,1718439052628,-500.0,0.00022191,3]
[329563797,1718439052638,-500.0,0.00022191,3]
[329563798,1718439052652,-503.17,0.00022191,3]
[329563799,1718439052662,-518.71,0.00022191,3]
[329563800,1718439052728,-500.0,0.00022191,3]
[329563801,1718439052758,-500.0,0.00022191,3]
[329563802,1718439052792,-500.0,0.00022191,3]
[329563803,1718439052808,-500.0,0.00022191,3]
[329563804,1718439052844,-557.24932806,0.00022191,3]
[329563805,1718439052884,-507.96,0.00022191,3]
[329563806,1718439052908,-500.0,0.00022191,3]
[329563807,1718439052957,-500.0,0.00022191,3]
[329563808,1718439052983,-500.0,0.00022191,3]
[329563809,1718439052996,-564.35,0.00022191,3]
[329563810,1718439053007,-500.0,0.00022191,3]
[329563811,1718439053017,-1263.87,0.00022191,3]
[329563812,1718439053029,-500.0,0.00022191,3]
[329563813,1718439053061,-255.27,0.00022191,3]
[329563814,1718439053072,-500.0,0.00022191,3]
[329563815,1718439053084,-500.0,0.00022191,3]
[329563816,1718439053116,-500.0,0.00022191,3]
[329563817,1718439053129,-1710.44,0.00022191,3]
[329563818,1718439053144,-500.0,0.00022191,3]
[329563819,1718439053156,-500.0,0.00022191,3]
[329563820,1718439053170,-500.0,0.00022191,3]
[329563821,1718439053187,-500.0,0.00022191,3]
[329563822,1718439053199,-500.0,0.00022191,3]
[329563823,1718439053217,-500.0,0.00022191,3]
[329563825,1718439053235,-749.95,0.00022191,3]
[329563826,1718439053251,-500.0,0.00022191,3]
[329563828,1718439053263,-500.0,0.00022191,3]
[329563830,1718439053289,-500.0,0.00022191,3]
[329563831,1718439053306,-500.0,0.00022191,3]
[329563832,1718439053326,-500.0,0.00022191,3]
[329563833,1718439053364,-529.62,0.00022191,3]
[329563834,1718439053378,-500.0,0.00022191,3]
[329563835,1718439053416,-500.0,0.00022191,3]
[329563836,1718439053444,-500.0,0.00022191,3]
[329563837,1718439053455,-500.0,0.00022191,3]
[329563838,1718439053501,-500.0,0.00022191,3]
[329563839,1718439053525,-500.0,0.00022191,3]
[329563840,1718439053548,-500.0,0.00022191,3]
[329563841,1718439053564,-500.0,0.00022191,3]
[329563842,1718439053575,-500.0,0.00022191,3]
[329563843,1718439053593,-500.0,0.00022191,3]
[329563844,1718439053622,-500.0,0.00022191,3]
[329563845,1718439053644,-500.0,0.00022191,3]
[329563846,1718439053655,-500.0,0.00022191,3]
[329563847,1718439053700,-500.0,0.00022191,3]
[329563848,1718439053732,-500.0,0.00022191,3]
[329563849,1718439053769,-561.53,0.00022191,3]
[329563850,1718439053787,-654.74,0.00022191,3]
[329563851,1718439053802,-500.0,0.00022191,3]
[329563852,1718439053813,-500.0,0.00022191,3]
[329563853,1718439053826,-500.0,0.00022191,3]
[329563854,1718439053845,-563.55,0.00022191,3]
[329563855,1718439053892,-500.0,0.00022191,3]
[329563856,1718439053930,-500.0,0.00022191,3]
[329563857,1718439053954,-500.0,0.00022191,3]
[329563858,1718439053966,-500.0,0.00022191,3]
[329563859,1718439053976,-500.0,0.00022191,3]
[329563860,1718439053989,-500.0,0.00022191,3]
[329563861,1718439054008,-500.0,0.00022191,3]
[329563862,1718439054019,-500.0,0.00022191,3]
[329563863,1718439054063,-571.34,0.00022191,3]
[329563864,1718439054088,-504.38,0.00022191,3]
[329563865,1718439054111,-500.0,0.00022191,3]
[329563866,1718439054125,-268.40699673,0.00022191,3]
[329563867,1718439054168,-500.0,0.00022191,3]
[329563868,1718439054182,-500.0,0.00022191,3]
[329563869,1718439054200,-808.1,0.00022191,3]
[329563870,1718439054213,-500.0,0.00022191,3]
[329563871,1718439054235,-530.08,0.00022191,3]
[329563872,1718439054251,-500.0,0.00022191,3]
[329563873,1718439054261,-500.0,0.00022191,3]
[329563874,1718439054277,-500.0,0.00022191,3]
[329563875,1718439054294,-500.0,0.00022191,3]
[329563876,1718439054328,-949.2,0.00022191,3]
[329563877,1718439054343,-500.0,0.00022191,3]
[329563878,1718439054357,-500.0,0.00022191,3]
[329563879,1718439054381,-500.0,0.00022191,3]
[329563880,1718439054392,-500.0,0.00022191,3]
[329563881,1718439054414,-507.18644272,0.00022191,3]
[329563882,1718439054424,-500.0,0.00022191,3]
[329563883,1718439054441,-581.32,0.00022191,3]
[329563885,1718439054456,-500.0,0.00022191,3]
[329563886,1718439054471,-500.0,0.00022191,3]
[329563887,1718439054494,-500.0,0.00022191,3]
[329563888,1718439054504,-500.0,0.00022191,3]
[329563889,1718439054525,-452.34224409,0.00022191,3]
[329563890,1718439054544,-500.0,0.00022191,3]
[329563891,1718439054569,-500.0,0.00022191,3]
[329563892,1718439054587,-500.0,0.00022191,3]
[329563893,1718439054597,-500.0,0.00022191,3]
[329563894,1718439054609,-500.0,0.00022191,3]
[329563895,1718439054622,-638.85,0.00022191,3]
[329563896,1718439054646,-500.0,0.00022191,3]
[329563897,1718439054659,-619.95,0.00022191,3]
[329563898,1718439054670,-500.0,0.00022191,3]
[329563899,1718439054688,-500.0,0.00022191,3]
[329563900,1718439054719,-500.0,0.00022191,3]
[329563901,1718439054753,-500.0,0.00022191,3]
[329563902,1718439054765,-500.0,0.00022191,3]
[329563903,1718439054776,-701.29,0.00022191,3]
[329563904,1718439054788,-582.65267015,0.00022191,3]
[329563905,1718439054812,-500.0,0.00022191,3]
[329563906,1718439054824,-500.0,0.00022191,3]
[329563907,1718439054860,-500.0,0.00022191,3]
[329563908,1718439054908,-2314.7,0.00022191,3]
[329563909,1718439054928,-500.0,0.00022191,3]
[329563910,1718439054941,-500.0,0.00022191,3]
[329563911,1718439054953,-1217.89,0.00022191,3]
[329563912,1718439054983,-631.6399785,0.00022191,3]
[329563913,1718439054994,-487.91381598,0.00022191,3]
[329563914,1718439055012,-500.0,0.00022191,3]
[329563915,1718439055023,-500.0,0.00022191,3]
[329563916,1718439055034,-500.0,0.00022191,3]
[329563917,1718439055045,-500.0,0.00022191,3]
[329563918,1718439055072,-500.0,0.00022191,3]
[329563919,1718439055082,-825.1,0.00022191,3]
[329563920,1718439055108,-520.28,0.00022191,3]
[329563921,1718439055121,-500.0,0.00022191,3]
[329563922,1718439055135,-2093.01,0.00022191,3]
[329563923,1718439055158,-500.0,0.00022191,3]
[329563924,1718439055186,-500.0,0.00022191,3]
[329563925,1718439055197,-500.0,0.00022191,3]
[329563926,1718439055221,-413.51895953,0.00022191,3]
[329563927,1718439055238,-500.0,0.00022191,3]
[329563928,1718439055267,-159.75,0.00022191,3]
[329563929,1718439055285,-546.13,0.00022191,3]
[329563930,1718439055305,-500.0,0.00022191,3]
[329563931,1718439055327,-500.0,0.00022191,3]
[329563932,1718439055358,-500.0,0.00022191,3]
[329563933,1718439055370,-1102.31,0.00022191,3]
[329563934,1718439055389,-342.29997601,0.00022191,3]
[329563935,1718439055402,-569.09,0.00022191,3]
[329563936,1718439055447,-537.86,0.00022191,3]
[329563937,1718439055459,-500.0,0.00022191,3]
[329563938,1718439055474,-500.0,0.00022191,3]
[329563939,1718439055489,-500.0,0.00022191,3]
[329563940,1718439055506,-500.0,0.00022191,3]
[329563941,1718439055522,-500.0,0.00022191,3]
[329563942,1718439055537,-500.0,0.00022191,3]
[329563943,1718439055562,-500.0,0.00022191,3]
[329563944,1718439055577,-500.0,0.00022191,3]
[329563945,1718439055589,-500.0,0.00022191,3]
[329563946,1718439055602,-500.0,0.00022191,3]
[329563947,1718439055615,-500.0,0.00022191,3]
[329563948,1718439055637,-500.0,0.00022191,3]
[329563949,1718439055649,-1223.84,0.00022191,3]
[329563950,1718439055672,-500.0,0.00022191,3]
[329563951,1718439055689,-704.51,0.00022191,3]
[329563952,1718439055703,-1209.48,0.00022191,3]
[329563953,1718439055724,-500.0,0.00022191,3]
[329563954,1718439055738,-500.0,0.00022191,3]
[329563955,1718439055798,-500.0,0.00022191,3]
[329563956,1718439055823,-500.0,0.00022191,3]
[329563957,1718439055868,-581.67836488,0.00022191,3]
[329563958,1718439055881,-500.0,0.00022191,3]
[329563959,1718439055920,-500.0,0.00022191,3]
[329563960,1718439055934,-500.0,0.00022191,3]
[329563961,1718439055956,-2725.87,0.00022191,3]
[329563962,1718439055969,-500.0,0.00022191,3]
[329563963,1718439056008,-500.0,0.00022191,3]
[329563964,1718439056031,-606.84,0.00022191,3]
[329563965,1718439056045,-500.0,0.00022191,3]
[329563966,1718439056085,-500.0,0.00022191,3]
[329563967,1718439056099,-649.27,0.00022191,3]
[329563968,1718439056114,-500.0,0.00022191,3]
[329563969,1718439056130,-512.72051132,0.00022191,3]
[329563970,1718439056146,-500.0,0.00022191,3]
[329563971,1718439056167,-500.0,0.00022191,3]
[329563972,1718439056199,-500.0,0.00022191,3]
[329563973,1718439056214,-500.0,0.00022191,3]
[329563974,1718439056226,-500.0,0.00022191,3]
[329563975,1718439056245,-861.55,0.00022191,3]
[329563976,1718439056290,-581.25,0.00022191,3]
[329563977,1718439056307,-500.0,0.00022191,3]
[329563978,1718439056319,-500.0,0.00022191,3]
[329563979,1718439056333,-500.0,0.00022191,3]
[329563980,1718439056365,-500.0,0.00022191,3]
[329563981,1718439056398,-859.59,0.00022191,3]
[329563982,1718439056430,-500.0,0.00022191,3]
[329563983,1718439056445,-500.0,0.00022191,3]
[329563984,1718439056468,-500.0,0.00022191,3]
[329563985,1718439056480,-500.0,0.00022191,3]
[329563986,1718439056492,-500.0,0.00022191,3]
[329563987,1718439056508,-500.0,0.00022191,3]
[329563988,1718439056520,-848.59,0.00022191,3]
[329563989,1718439056541,-540.40831691,0.00022191,3]
[329563990,1718439056799,-329.14260328,0.00022191,3]
[329563991,1718439056816,-50.13907981,0.00022191,3]
[329563992,1718439056827,-207.55818108,0.00022191,3]
[329563993,1718439056851,-259.86200001,0.00022191,3]
[329563994,1718439056865,-32.57981891,0.00022191,3]
[329563995,1718439057032,-324.90017819,0.00022191,3]
[329563996,1718439057066,-175.09982181,0.00022191,3]
[329563997,1718439057076,-500.0,0.00022191,3]
[329563998,1718439057090,-500.0,0.00022191,3]
[329563999,1718439057106,-500.0,0.00022191,3]
[329564000,1718439057119,-500.0,0.00022191,3]
[329564001,1718439057139,-500.0,0.00022191,3]
[329564002,1718439057151,-1908.41,0.00022191,3]
[329564003,1718439057163,-500.0,0.00022191,3]
[329564004,1718439057176,-565.04,0.00022191,3]
[329564005,1718439057203,-500.0,0.00022191,3]
[329564006,1718439057215,-537.41,0.00022191,3]
[329564007,1718439057226,-500.0,0.00022191,3]
[329564008,1718439057237,-500.0,0.00022191,3]
[329564009,1718439057250,-500.0,0.00022191,3]
[329564010,1718439057263,-290.0,0.00022337,2]
[329564011,1718439057283,-5788.0,0.00022337,2]
[329564012,1718439057313,-1195.0,0.00022337,2]
[329564013,1718439057330,-5160.0,0.00022337,2]
[329564014,1718439057342,-13288.863,0.00022337,2]
[329564015,1718439057355,-1205.878,0.00022337,2]
[329564016,1718439057368,-2000.0,0.00022358,2]
[329564017,1718439057380,-200.0,0.00022358,2]
[329564018,1718439057418,-2000.0,0.00022358,2]
[329564019,1718439057469,-200.0,0.00022358,2]
[329564020,1718439057487,-200.0,0.00022358,2]
[329564021,1718439057518,-190.85369923,0.00022365,2]
[329564022,1718439057532,-255.18117149,0.00022463,2]
[329564023,1718439057545,-645.74636338,0.00022463,2]
[329564024,1718439057561,-155.40585839,0.00022464,2]
[329564025,1718439057584,-500.0,0.00022464,3]
[329564026,1718439057596,-500.0,0.00022465,3]
[329564027,1718439057612,-500.0,0.00022465,3]
[329564028,1718439057628,-500.0,0.00022465,3]
[329564029,1718439057641,-473.15170544,0.00022465,3]
[329564030,1718439057655,-500.0,0.00022465,3]
[329564031,1718439057691,-268.71661176,0.00022465,3]
[329564032,1718439057706,-500.0,0.00022465,3]
[329564033,1718439057720,-619.23809761,0.00022465,3]
[329564034,1718439057733,-500.0,0.00022465,3]
[329564035,1718439057752,-500.0,0.00022465,3]
[329564036,1718439057764,-337.95,0.00022465,3]
[329564037,1718439057777,-500.0,0.00022465,3]
[329564038,1718439057801,-500.0,0.00022465,3]
[329564039,1718439057814,-500.0,0.00022465,3]
[329564040,1718439057826,-500.0,0.00022465,3]
[329564041,1718439057841,-570.84,0.00022465,3]
[329564042,1718439057853,-500.0,0.00022465,3]
[329564043,1718439057876,-500.0,0.00022465,3]
[329564044,1718439057898,-500.0,0.00022465,3]
[329564045,1718439057912,-500.0,0.00022465,3]
[329564046,1718439057934,-500.0,0.00022465,3]
[329564047,1718439057947,-500.0,0.00022465,3]
[329564048,1718439057966,-500.0,0.00022465,3]
[329564049,1718439057988,-500.0,0.00022465,3]
[329564050,1718439058001,-582.70601611,0.00022465,3]
[329564051,1718439058013,-500.0,0.00022465,3]
[329564052,1718439058035,-500.0,0.00022465,3]
[329564053,1718439058057,-500.0,0.00022465,3]
[329564054,1718439058095,-746.45,0.00022465,3]
[329564055,1718439058157,-500.0,0.00022465,3]
[329564056,1718439058168,-500.0,0.00022465,3]
[329564057,1718439058184,-802.52,0.00022465,3]
[329564058,1718439058196,-636.92376183,0.00022465,3]
[329564059,1718439058218,-772.42,0.00022465,3]
[329564060,1718439058242,-500.0,0.00022465,3]
[329564061,1718439058257,-500.0,0.00022465,3]
[329564062,1718439058281,-687.44,0.00022465,3]
[329564063,1718439058307,-500.0,0.00022465,3]
[329564064,1718439058349,-500.0,0.00022465,3]
[329564065,1718439058364,-532.15,0.00022465,3]
[329564066,1718439058417,-849.28,0.00022465,3]
[329564067,1718439058464,-702.84,0.00022465,3]
[329564068,1718439058476,-628.0076037,0.00022465,3]
[329564069,1718439058488,-820.09,0.00022465,3]
[329564070,1718439058505,-500.0,0.00022465,3]
[329564071,1718439058521,-500.0,0.00022465,3]
[329564072,1718439058533,-798.42,0.00022465,3]
[329564073,1718439058545,-1084.5,0.00022465,3]
[329564074,1718439058567,-500.0,0.00022465,3]
[329564075,1718439058578,-500.0,0.00022465,3]
[329564076,1718439058596,-500.0,0.00022465,3]
[329564077,1718439058625,-500.0,0.00022465,3]
[329564078,1718439058640,-500.0,0.00022465,3]
[329564079,1718439058653,-580.73,0.00022465,3]
[329564080,1718439058674,-500.0,0.00022465,3]
[329564081,1718439058697,-500.0,0.00022465,3]
[329564082,1718439058738,-282.55499733,0.00022465,3]
[329564083,1718439058757,-500.0,0.00022465,3]
[329564084,1718439058768,-500.0,0.00022465,3]
[329564085,1718439058816,-500.0,0.00022465,3]
[329564086,1718439058860,-500.0,0.00022465,3]
[329564087,1718439058885,-544.27,0.00022465,3]
[329564088,1718439058902,-599.69,0.00022465,3]
[329564089,1718439058933,-637.92,0.00022465,3]
[329564090,1718439058949,-500.0,0.00022465,3]
[329564091,1718439058970,-500.0,0.00022465,3]
[329564092,1718439058986,-500.0,0.00022465,3]
[329564093,1718439059036,-567.57591802,0.00022465,3]
[329564094,1718439059052,-530.89,0.00022465,3]
[329564095,1718439059070,-617.27,0.00022465,3]
[329564096,1718439059093,-500.0,0.00022465,3]
[329564097,1718439059124,-811.6,0.00022465,3]
[329564098,1718439059146,-734.43,0.00022465,3]
[329564099,1718439059164,-500.0,0.00022465,3]
[329564100,1718439059178,-500.0,0.00022465,3]
[329564101,1718439059228,-579.06,0.00022465,3]
[329564102,1718439059241,-500.0,0.00022465,3]
[329564103,1718439059254,-500.0,0.00022465,3]
[329564104,1718439059287,-798.62,0.00022465,3]
[329564105,1718439059307,-500.0,0.00022465,3]
[329564106,1718439059320,-612.8,0.00022465,3]
[329564107,1718439059362,-500.0,0.00022465,3]
[329564108,1718439059376,-500.0,0.00022465,3]
[329564109,1718439059392,-500.0,0.00022465,3]
[329564110,1718439059411,-500.0,0.00022465,3]
[329564111,1718439059453,-212.66,0.00022465,3]
[329564112,1718439059492,-649.61,0.00022465,3]
[329564113,1718439059518,-500.0,0.00022465,3]
[329564114,1718439059549,-500.0,0.00022465,3]
[329564115,1718439059561,-683.86,0.00022465,3]
[329564116,1718439059589,-500.0,0.00022465,3]
[329564117,1718439059613,-500.0,0.00022465,3]
[329564118,1718439059640,-520.47523126,0.00022465,3]
[329564119,1718439059652,-500.0,0.00022465,3]
[329564120,1718439059663,-500.0,0.00022465,3]
[329564121,1718439059678,-500.0,0.00022465,3]
[329564122,1718439059713,-500.0,0.00022465,3]
[329564123,1718439059736,-500.0,0.00022465,3]
[329564124,1718439059749,-582.86,0.00022465,3]
[329564125,1718439059763,-500.0,0.00022465,3]
[329564126,1718439059789,-500.0,0.00022465,3]
[329564127,1718439059844,-500.0,0.00022465,3]
[329564128,1718439059893,-500.0,0.00022465,3]
[329564129,1718439059918,-813.63,0.00022465,3]
[329564130,1718439059995,-500.0,0.00022465,3]
[329564131,1718439060025,-500.0,0.00022465,3]
[329564132,1718439060058,-500.0,0.00022465,3]
[329564133,1718439060069,-500.0,0.00022465,3]
[329564134,1718439060089,-623.43,0.00022465,3]
[329564135,1718439060160,-407.84985478,0.00022465,3]
[329564136,1718439060178,-299.04445609,0.00022465,3]
[329564137,1718439060208,-500.0,0.00022465,3]
[329564138,1718439060219,-500.0,0.00022465,3]
[329564139,1718439060241,-258.50230028,0.00022465,3]
[329564140,1718439060308,-241.49769972,0.00022465,3]
[329564141,1718439060331,-720.05,0.00022465,3]
[329564142,1718439060347,-621.24,0.00022465,3]
[329564143,1718439060361,-500.0,0.00022465,3]
[329564144,1718439060386,-500.0,0.00022465,3]
[329564145,1718439060401,-500.0,0.00022465,3]
[329564146,1718439060417,-609.35,0.00022465,3]
[329564147,1718439060440,-500.0,0.00022465,3]
[329564148,1718439060461,-500.0,0.00022465,3]
[329564149,1718439060493,-500.0,0.00022465,3]
[329564150,1718439060512,-500.0,0.00022465,3]
[329564151,1718439060522,-415.41028365,0.00022465,3]
[329564152,1718439060533,-500.0,0.00022465,3]
[329564153,1718439060543,-500.0,0.00022465,3]
[329564154,1718439060555,-500.0,0.00022465,3]
[329564155,1718439060566,-500.0,0.00022465,3]
[329564156,1718439060596,-500.0,0.00022465,3]
[329564157,1718439060641,-500.0,0.00022465,3]
[329564158,1718439060689,-500.0,0.00022465,3]
[329564159,1718439060712,-500.0,0.00022465,3]
[329564160,1718439060748,-500.0,0.00022465,3]
[329564161,1718439060776,-500.0,0.00022465,3]
[329564162,1718439060812,-550.15,0.00022465,3]
[329564163,1718439060844,-500.0,0.00022465,3]
[329564164,1718439060869,-500.0,0.00022465,3]
[329564165,1718439060953,-500.0,0.00022465,3]
[329564166,1718439060964,-614.12,0.00022465,3]
[329564167,1718439060994,-500.0,0.00022465,3]
[329564168,1718439061022,-500.0,0.00022465,3]
[329564169,1718439061033,-500.0,0.00022465,3]
[329564170,1718439061051,-500.0,0.00022465,3]
[329564171,1718439061084,-500.0,0.00022465,3]
[329564172,1718439061112,-564.38,0.00022465,3]
[329564173,1718439061170,-500.0,0.00022465,3]
[329564174,1718439061225,-611.53,0.00022465,3]
[329564175,1718439061281,-500.0,0.00022465,3]
[329564176,1718439061304,-500.0,0.00022465,3]
[329564177,1718439061319,-500.0,0.00022465,3]
[329564178,1718439061329,-513.89607861,0.00022465,3]
[329564179,1718439061348,-500.0,0.00022465,3]
[329564180,1718439061367,-500.0,0.00022465,3]
[329564181,1718439061377,-500.0,0.00022465,3]
[329564182,1718439061388,-500.0,0.00022465,3]
[329564183,1718439061408,-500.0,0.00022465,3]
[329564184,1718439061423,-643.38,0.00022465,3]
[329564185,1718439061440,-500.0,0.00022465,3]
[329564186,1718439061453,-500.0,0.00022465,3]
[329564187,1718439061500,-500.0,0.00022465,3]
[329564188,1718439061519,-500.0,0.00022465,3]
[329564189,1718439061544,-500.0,0.00022465,3]
[329564190,1718439061580,-500.0,0.00022465,3]
[329564191,1718439061616,-500.0,0.00022465,3]
[329564192,1718439061626,-589.65,0.00022465,3]
[329564193,1718439061655,-500.0,0.00022465,3]
[329564194,1718439061666,-500.0,0.00022465,3]
[329564195,1718439061684,-500.0,0.00022465,3]
[329564196,1718439061695,-500.0,0.00022465,3]
[329564197,1718439061706,-503.17,0.00022465,3]
[329564198,1718439061720,-518.71,0.00022465,3]
[329564199,1718439061731,-529.56420612,0.00022465,3]
[329564200,1718439061742,-500.0,0.00022465,3]
[329564201,1718439061757,-500.0,0.00022465,3]
[329564202,1718439061770,-500.0,0.00022465,3]
[329564203,1718439061790,-507.96,0.00022465,3]
[329564204,1718439061801,-500.0,0.00022465,3]
[329564205,1718439061828,-500.0,0.00022465,3]
[329564206,1718439061852,-500.0,0.00022465,3]
[329564207,1718439061874,-564.35,0.00022465,3]